bitfinex/quotes_ETHUSD_20241216
["timestamp","ask_amount","ask_price","bid_price","bid_amount"]
[1734338063646,2.15195399,3955.8,3954.6,0.32544778]
[1734338063647,2.15195399,3955.4,3955.1,2.52836]
[1734338065640,0.7681,3955.3,3954.5,2.52876]
[1734338065838,0.7681,3955.3,3954.6,3.18824877]
[1734338065839,2.15195399,3954.8,3954.6,3.18824877]
[1734338066064,2.15195399,3954.8,3954.0,3.34364]
[1734338066065,2.15195399,3954.8,3954.0,0.8146]
[1734338066266,2.15195399,3954.8,3954.7,2.52863]
[1734338067128,0.7681,3955.3,3954.7,2.52863]
[1734338067129,2.15195399,3955.2,3955.0,2.52843]
[1734338067260,2.15195399,3955.2,3954.7,0.64208653]
[1734338067594,2.15195399,3955.2,3954.9,2.52848]
[1734338068184,2.15195399,3955.2,3954.7,0.64208653]
[1734338068502,2.15195399,3955.2,3955.0,2.52839]
[1734338069343,2.15195399,3955.2,3955.1,2.52838]
[1734338070401,2.97455399,3955.6,3955.1,2.52838]
[1734338071397,2.97455399,3955.6,3954.7,1.44388653]
[1734338071600,2.97455399,3955.6,3955.2,2.52825]
[1734338072656,2.97455399,3955.6,3954.7,0.64208653]
[1734338072836,3.27200939,3955.6,3954.8,2.71710018]
[1734338073028,2.15195399,3955.2,3954.9,0.18854018]
[1734338073382,2.15195399,3955.2,3954.9,2.71702018]
[1734338073670,2.15195399,3955.2,3954.6,2.52863]
[1734338073875,2.15195399,3954.8,3954.6,2.52863]
[1734338074621,2.15195399,3954.8,3954.7,2.52863]
[1734338075427,2.15195399,3954.8,3954.3,0.32544778]
[1734338075771,2.15195399,3954.8,3954.4,0.18860988]
[1734338075916,0.2151954,3954.7,3954.2,2.52889]
[1734338076955,0.2151954,3954.7,3954.1,0.31663875]
[1734338077471,2.15195399,3954.8,3954.1,2.84562875]
[1734338079153,0.8137,3955.1,3954.6,2.52866]
[1734338079741,0.8137,3955.1,3954.7,0.18875784]
[1734338079940,0.8137,3955.1,3954.6,2.52866]
[1734338080324,0.8137,3955.1,3954.7,0.18877024]
[1734338080647,0.8137,3955.1,3954.6,2.52866]
[1734338080847,0.8137,3955.1,3954.7,2.71742635]
[1734338081059,0.8137,3955.1,3954.7,2.52861]
[1734338081423,0.8137,3955.1,3954.8,0.18884683]
[1734338081677,2.15195399,3955.2,3954.3,0.8133]
[1734338081678,2.15195399,3955.2,3954.9,0.18884683]
[1734338081875,2.15195399,3955.2,3954.6,2.5287]
[1734338082084,2.15195399,3955.2,3954.8,2.52854]
[1734338082373,0.7562,3955.5,3954.9,0.18884053]
[1734338082536,2.15195399,3955.6,3955.1,2.52836]
[1734338083053,2.15195399,3955.6,3955.2,0.18887504]
[1734338083264,2.15195399,3955.6,3955.1,2.52836]
[1734338083476,2.15195399,3955.6,3955.2,0.18889476]
[1734338083625,2.15195399,3955.6,3955.1,2.52836]
[1734338084046,2.15195399,3955.6,3955.2,0.18890602]
[1734338084328,2.15195399,3955.6,3954.6,6.11738618]
[1734338084530,2.15195399,3955.6,3955.0,2.52843]
[1734338084831,2.15195399,3955.6,3955.1,0.18891594]
[1734338085049,2.15195399,3955.6,3955.2,0.18891594]
[1734338085252,2.15195399,3955.6,3955.0,2.52843]
[1734338085427,2.15195399,3955.6,3955.1,0.18893313]
[1734338085651,2.15195399,3955.6,3955.2,0.18893313]
[1734338085865,2.15195399,3955.6,3955.0,2.52843]
[1734338086036,2.15195399,3955.6,3955.1,0.18894246]
[1734338086228,2.15195399,3955.6,3955.2,0.18894246]
[1734338086428,2.15195399,3955.6,3955.0,2.52843]
[1734338086671,2.15195399,3955.2,3955.1,0.18895091]
[1734338087028,2.15195399,3955.2,3955.1,0.18894555]
[1734338087436,2.15195399,3955.2,3955.0,2.52843]
[1734338087685,2.15195399,3955.2,3955.1,0.18893547]
[1734338088186,3.18574939,3955.2,3955.1,0.18893547]
[1734338088366,3.18574939,3955.2,3954.4,2.5288]
[1734338088577,3.18574939,3955.2,3954.5,0.188962]
[1734338088791,3.18574939,3955.2,3954.6,0.188962]
[1734338088933,3.18574939,3955.2,3954.7,0.188962]
[1734338089134,0.31857494,3955.1,3954.8,0.188962]
[1734338089372,0.31857494,3955.1,3954.9,0.188962]
[1734338089640,0.31857494,3955.1,3954.4,2.5288]
[1734338089990,0.31857494,3955.1,3954.5,0.18896957]
[1734338090133,2.97055399,3955.2,3954.6,0.18896957]
[1734338090333,2.97055399,3955.2,3954.7,2.7175673]
[1734338090547,2.97055399,3955.2,3954.8,0.1889873]
[1734338090783,2.97055399,3955.2,3954.9,0.1889873]
[1734338091013,2.97055399,3955.2,3955.0,0.1889873]
[1734338091227,2.97055399,3955.2,3954.4,0.32544778]
[1734338091228,2.97055399,3955.2,3954.9,2.52849]
[1734338091383,2.97055399,3955.2,3954.4,0.32544778]
[1734338091384,0.8303,3955.5,3955.0,2.71743283]
[1734338091584,0.8303,3955.5,3955.1,0.18900283]
[1734338091898,0.8303,3955.5,3955.2,0.18900283]
[1734338092097,0.8303,3955.5,3954.8,2.52856]
[1734338092424,0.8303,3955.5,3954.0,5.52907]
[1734338092425,2.15195399,3954.9,3954.0,5.52907]
[1734338092585,2.97225399,3954.4,3954.1,0.18907656]
[1734338092925,2.97225399,3954.4,3954.2,0.18907656]
[1734338093130,2.97225399,3954.4,3953.6,2.52932]
[1734338093273,2.97225399,3954.4,3953.7,2.71836251]
[1734338093470,2.97225399,3954.4,3953.8,0.18910251]
[1734338093708,2.97225399,3954.4,3953.9,0.18910251]
[1734338093887,2.97225399,3954.4,3953.6,2.85476778]
[1734338093888,2.15195399,3954.0,3953.6,2.85476778]
[1734338094102,2.15195399,3954.0,3953.7,0.1890915]
[1734338094419,0.8203,3954.4,3953.8,0.1890915]
[1734338094583,2.15195399,3954.0,3953.9,0.1890915]
[1734338097607,2.15195399,3954.0,3953.1,0.31663875]
[1734338097608,3.19874939,3954.0,3952.9,3.0]
[1734338097811,2.15195399,3953.5,3953.0,0.18894609]
[1734338098117,2.15195399,3953.5,3953.1,0.18894609]
[1734338098425,2.15195399,3953.5,3953.2,0.18894609]
[1734338098637,2.15195399,3953.5,3953.3,0.18894609]
[1734338098799,2.15195399,3953.5,3953.4,0.18894609]
[1734338099285,2.15195399,3953.5,3953.0,2.5297]
[1734338099491,2.15195399,3953.5,3953.1,0.18881298]
[1734338099808,2.15195399,3953.5,3953.2,0.18880773]
[1734338100023,2.15195399,3953.5,3952.7,0.32544778]
[1734338100338,2.15195399,3953.9,3953.2,0.32544778]
[1734338100642,0.7706,3954.3,3953.4,0.7586]
[1734338100776,0.7706,3954.3,3953.5,0.18880822]
[1734338100980,0.7706,3954.3,3953.6,0.18880822]
[1734338101219,0.7706,3954.3,3953.7,0.18880822]
[1734338101512,0.7706,3954.3,3953.6,2.52933]
[1734338101814,0.7706,3954.3,3953.8,2.52921]
[1734338102001,0.7706,3954.3,3953.4,2.09371818]
[1734338102247,0.7706,3954.3,3953.5,2.71811432]
[1734338102404,0.7706,3954.3,3953.6,0.18877432]
[1734338102779,0.7706,3954.3,3953.7,0.18877432]
[1734338102984,0.7706,3954.3,3953.8,0.18877432]
[1734338103799,0.7706,3954.3,3953.7,1.21798432]
[1734338104002,0.7706,3954.3,3953.4,1.40068653]
[1734338104200,0.7706,3954.3,3953.5,0.31663875]
[1734338104201,2.15195399,3954.0,3953.5,0.31663875]
[1734338104403,2.15195399,3954.0,3953.5,2.84603875]
[1734338104812,2.15195399,3954.0,3953.1,3.33091]
[1734338104983,2.15195399,3953.6,3953.2,3.0]
[1734338105190,2.15195399,3953.6,3953.1,2.52961]
[1734338105409,2.96185399,3953.6,3953.1,2.52961]
[1734338105721,2.96185399,3953.6,3953.2,2.52957]
[1734338107089,2.96185399,3953.6,3952.9,2.84636875]
[1734338107291,2.96185399,3953.6,3953.0,0.64208653]
[1734338107828,3.25803939,3953.6,3953.0,0.64208653]
[1734338108123,3.25803939,3953.6,3952.4,3.8243]
[1734338108124,2.15195399,3953.2,3952.6,3.0]
[1734338108331,2.15195399,3953.2,3952.6,0.64208653]
[1734338108532,2.15195399,3953.2,3952.8,3.0]
[1734338109107,2.15195399,3953.2,3952.7,0.64208653]
[1734338112188,0.7752,3953.1,3952.7,0.64208653]
[1734338113242,2.15195399,3952.8,3951.9,2.53041]
[1734338113392,2.15195399,3952.4,3951.9,2.53041]
[1734338113591,0.8042,3952.3,3951.9,3.17249653]
[1734338113821,2.15195399,3952.4,3951.5,0.7523]
[1734338113822,2.15195399,3952.4,3952.0,0.64208653]
[1734338114025,0.8042,3953.3,3952.2,0.7523]
[1734338114211,2.95615399,3953.3,3952.5,2.53]
[1734338114433,2.95615399,3953.3,3952.6,2.84658875]
[1734338114607,2.95615399,3953.3,3952.6,3.17203653]
[1734338116300,2.95615399,3953.3,3952.7,2.52988]
[1734338116498,2.95615399,3953.3,3952.9,2.52972]
[1734338116697,2.95615399,3953.3,3952.7,0.64208653]
[1734338117135,2.95615399,3953.3,3952.7,0.32544778]
[1734338117960,2.95615399,3953.3,3953.0,2.52972]
[1734338118255,2.95615399,3953.3,3952.9,2.52978]
[1734338118762,2.95615399,3953.3,3952.7,2.52991]
[1734338119055,2.95615399,3953.3,3952.4,3.32544778]
[1734338119206,2.95615399,3953.3,3952.7,2.52985]
[1734338120060,2.15195399,3952.9,3952.5,3.0]
[1734338120635,2.15195399,3953.8,3952.6,0.7867]
[1734338120809,2.15195399,3953.8,3952.9,2.52975]
[1734338120997,0.8011,3954.0,3953.4,2.52945]
[1734338121799,2.15195399,3953.8,3953.4,2.52945]
[1734338122001,2.15195399,3953.8,3953.0,0.69047797]
[1734338122453,0.7668,3953.3,3953.0,3.34811352]
[1734338122824,0.7668,3953.3,3953.0,0.34811352]
[1734338123658,0.7668,3953.3,3952.7,2.5299]
[1734338123935,0.7668,3953.3,3952.6,3.7867]
[1734338123936,0.7668,3953.3,3952.9,2.52975]
[1734338124308,0.7668,3953.3,3952.7,0.69047797]
[1734338124531,1.0586754,3953.3,3952.7,3.22036797]
[1734338124856,2.15195399,3953.0,3952.3,0.69047797]
[1734338125139,0.7975,3952.9,3952.5,2.53003]
[1734338126035,0.7975,3952.9,3952.3,0.69047797]
[1734338126203,2.15195399,3952.6,3952.3,0.69047797]
[1734338127903,2.15195399,3952.6,3952.0,3.0]
[1734338128111,2.15195399,3952.6,3952.0,3.69047797]
[1734338128311,2.15195399,3952.6,3952.0,0.69047797]
[1734338128531,2.15195399,3952.6,3951.3,3.0]
[1734338128532,0.7975,3952.5,3952.1,0.69047797]
[1734338128738,0.7975,3952.5,3952.1,3.22072797]
[1734338129534,0.7975,3952.5,3952.1,0.69047797]
[1734338129951,2.15195399,3952.6,3952.5,2.53004]
[1734338130249,0.7772,3952.8,3952.5,2.53004]
[1734338130454,0.7772,3952.8,3952.3,2.53016]
[1734338130607,0.7772,3952.8,3952.3,0.69047797]
[1734338132461,0.7772,3952.8,3952.3,3.22060797]
[1734338133847,0.7772,3952.8,3952.3,0.69047797]
[1734338135531,0.7772,3952.8,3952.3,3.22061797]
[1734338135961,0.7772,3952.8,3951.8,3.31993]
[1734338135962,0.7772,3952.8,3952.6,2.52997]
[1734338137532,1.04744367,3954.1,3952.5,0.8149]
[1734338137734,2.15195399,3953.6,3953.1,2.52962]
[1734338137944,2.15195399,3953.6,3952.6,6.22044797]
[1734338138144,2.15195399,3953.6,3953.2,2.52954]
[1734338138565,2.15195399,3953.6,3953.1,0.34811352]
[1734338138566,2.15195399,3953.6,3953.4,2.52944]
[1734338138870,2.97755399,3954.0,3953.1,0.34811352]
[1734338139371,2.97755399,3954.0,3953.1,3.34811352]
[1734338139597,3.27530939,3954.0,3953.3,2.52947]
[1734338140082,3.27530939,3954.0,3953.4,2.52944]
[1734338140083,2.15195399,3953.6,3953.4,2.52944]
[1734338140278,2.15195399,3953.6,3953.5,2.5294]
[1734338140637,2.15195399,3953.6,3953.1,0.34811352]
[1734338140962,2.15195399,3953.6,3953.4,2.52946]
[1734338141637,2.15195399,3953.6,3953.2,2.52959]
[1734338141833,2.15195399,3953.6,3953.1,0.34811352]
[1734338142185,0.8059,3954.8,3954.5,2.52876]
[1734338142533,0.8059,3954.8,3954.1,0.34811352]
[1734338142742,0.8059,3955.2,3954.9,2.52847]
[1734338142975,1.02105691,3955.2,3955.0,2.52842]
[1734338143271,2.15195399,3955.8,3954.9,0.8006]
[1734338143433,2.15195399,3955.8,3955.5,2.52811]
[1734338143633,2.15195399,3955.8,3955.1,0.34811352]
[1734338144380,2.15195399,3955.8,3955.2,2.52831]
[1734338144682,2.15195399,3955.8,3955.1,0.34811352]
[1734338144683,0.2902054,3955.7,3955.3,2.52824]
[1734338145463,0.2902054,3955.7,3955.1,2.52832]
[1734338146075,0.2902054,3955.7,3955.2,2.52825]
[1734338146277,0.2902054,3955.7,3954.8,2.52852]
[1734338146656,0.2902054,3955.7,3955.1,2.52836]
[1734338147543,2.15195399,3955.4,3954.6,2.87680352]
[1734338147747,2.15195399,3955.4,3954.3,0.7918]
[1734338147748,2.15195399,3955.0,3954.2,0.34236445]
[1734338148146,2.15195399,3955.0,3954.5,3.0]
[1734338150855,2.15195399,3955.0,3954.2,0.34236445]
[1734338151187,0.8099,3955.3,3954.2,0.34236445]
[1734338151188,0.8099,3955.3,3954.9,2.5285]
[1734338151549,1.1060854,3955.3,3954.4,3.0]
[1734338152047,1.1060854,3955.3,3954.6,5.52863]
[1734338152245,1.1060854,3955.3,3954.2,0.34236445]
[1734338152246,0.8099,3955.3,3954.7,2.5286]
[1734338154189,0.7591,3956.0,3954.7,0.69047797]
[1734338154384,2.15195399,3956.1,3954.5,3.0]
[1734338154385,0.7591,3956.4,3956.2,2.52767]
[1734338154585,0.7591,3957.6,3955.9,0.34811352]
[1734338154788,2.15195399,3957.2,3956.2,0.34811352]
[1734338155082,2.15195399,3957.2,3956.2,1.16071352]
[1734338155304,2.15195399,3957.2,3956.6,2.5274]
[1734338155483,0.328582,3957.5,3956.2,1.16071352]
[1734338155484,0.328582,3957.5,3956.7,2.52734]
[1734338155688,2.15195399,3957.2,3956.4,2.52748]
[1734338156053,2.15195399,3957.2,3956.5,2.52748]
[1734338156761,2.15195399,3957.2,3956.0,3.34236445]
[1734338156762,0.7803,3956.7,3956.0,3.0]
[1734338157083,0.7803,3956.7,3954.9,2.65582738]
[1734338157084,0.7803,3956.7,3955.5,0.7816]
[1734338157253,0.7803,3956.7,3955.9,0.34811352]
[1734338157648,2.15195399,3957.0,3956.3,2.52756]
[1734338157905,2.15195399,3957.0,3955.9,0.69047797]
[1734338158108,2.15195399,3957.0,3956.0,0.34811352]
[1734338158317,2.15195399,3957.0,3956.3,2.52756]
[1734338158589,2.15195399,3957.0,3956.0,0.34811352]
[1734338158751,2.15195399,3957.0,3956.7,2.52734]
[1734338158954,2.97825399,3957.4,3956.4,3.0]
[1734338159178,2.97825399,3957.4,3956.9,2.52722]
[1734338159349,2.97825399,3957.8,3957.0,2.52713]
[1734338159549,2.97825399,3957.8,3956.6,0.33344228]
[1734338159755,2.97825399,3957.8,3956.8,2.52729]
[1734338160054,2.97825399,3957.8,3956.8,2.52726]
[1734338160561,2.97825399,3957.8,3957.0,2.52716]
[1734338161073,2.97825399,3957.8,3957.1,2.52707]
[1734338161358,2.97825399,3957.8,3957.2,2.52701]
[1734338161562,0.8263,3957.8,3957.2,2.52701]
[1734338162172,0.8263,3957.8,3957.0,2.52713]
[1734338162373,0.8263,3957.8,3956.6,3.6815558]
[1734338162575,3.4732538,3957.8,3956.7,2.52734]
[1734338162773,3.4732538,3957.8,3956.9,2.52721]
[1734338163405,3.4732538,3957.8,3956.6,2.87547352]
[1734338163692,3.4732538,3957.8,3956.6,0.34811352]
[1734338163860,3.4732538,3957.8,3956.8,2.52728]
[1734338164057,0.34732538,3957.7,3956.8,2.52728]
[1734338164279,0.34732538,3957.7,3956.9,2.52722]
[1734338164452,3.4732538,3957.8,3956.9,2.52722]
[1734338165880,3.4732538,3957.8,3956.6,0.34811352]
[1734338166066,2.52674,3957.7,3956.6,0.34811352]
[1734338166281,3.4732538,3957.8,3956.8,2.52729]
[1734338167514,3.4732538,3957.8,3956.7,3.0]
[1734338167803,3.82057918,3957.8,3956.8,2.52728]
[1734338168204,3.82057918,3957.8,3956.9,2.52722]
[1734338168377,3.82057918,3957.8,3957.0,2.52716]
[1734338169111,3.82057918,3957.8,3957.3,2.52694]
[1734338169112,0.8263,3957.8,3957.3,2.52694]
[1734338169268,0.8263,3957.8,3957.3,0.34811352]
[1734338169806,0.12564729,3959.2,3957.3,0.34811352]
[1734338169807,0.7637,3958.6,3957.3,0.37338215]
[1734338170106,0.7637,3958.6,3957.8,2.52665]
[1734338170303,0.7637,3958.6,3957.9,2.52658]
[1734338170685,0.7637,3958.6,3958.0,2.52651]
[1734338171169,0.7637,3958.6,3957.9,0.34811352]
[1734338171367,0.7637,3958.6,3957.6,2.52677]
[1734338171624,0.328978,3958.5,3957.6,2.52677]
[1734338171801,0.328978,3958.5,3957.8,2.52662]
[1734338172001,0.7637,3958.6,3957.5,2.52678]
[1734338172902,0.7637,3958.6,3957.4,0.34236445]
[1734338173076,0.7637,3958.6,3957.6,2.52677]
[1734338173278,0.7637,3958.6,3957.4,0.69047797]
[1734338173585,0.7637,3958.6,3957.7,2.52671]
[1734338173808,1.092665,3958.6,3957.7,2.52671]
[1734338174091,1.092665,3958.6,3957.5,2.87495352]
[1734338174669,0.7637,3958.6,3957.5,0.34811352]
[1734338174985,0.7639,3959.2,3957.7,0.7768]
[1734338175185,0.7639,3959.2,3958.5,2.52617]
[1734338175394,0.7639,3959.2,3957.9,3.0]
[1734338175395,0.7639,3959.2,3958.0,3.0]
[1734338175687,0.7639,3959.2,3958.1,0.6217068]
[1734338176101,2.6469538,3960.8,3958.2,0.78765898]
[1734338176400,2.52487,3960.6,3959.3,2.52566]
[1734338176574,2.52487,3960.6,3959.0,0.7979]
[1734338176771,2.52487,3960.6,3959.3,2.52567]
[1734338177007,0.59935238,3960.5,3959.3,2.52567]
[1734338177406,0.59935238,3960.5,3959.0,0.7979]
[1734338177618,2.52514,3960.2,3959.0,3.32373]
[1734338177816,0.8126,3960.1,3959.0,2.52583]
[1734338178115,0.8126,3960.1,3958.8,3.0]
[1734338178116,3.93625938,3960.1,3958.8,2.526]
[1734338178332,3.93625938,3960.1,3958.9,3.0]
[1734338178738,1.41106938,3960.1,3958.9,3.0]
[1734338178949,2.52526,3960.0,3958.9,3.0]
[1734338179225,2.52526,3960.0,3958.1,3.51124032]
[1734338179226,0.807,3959.7,3958.2,0.7791]
[1734338179550,0.807,3959.7,3958.7,2.52608]
[1734338179853,0.807,3959.7,3958.6,3.0]
[1734338180010,2.52551,3959.6,3958.5,0.35819778]
[1734338180344,0.807,3959.7,3958.7,2.52604]
[1734338180900,0.807,3959.7,3958.6,0.32475513]
[1734338181243,0.807,3959.7,3958.3,0.36311352]
[1734338181244,0.8051,3959.6,3958.3,0.36311352]
[1734338181452,0.8051,3959.2,3958.3,0.36311352]
[1734338182339,3.33087,3959.2,3958.3,0.36311352]
[1734338184400,0.8051,3959.2,3958.3,0.36311352]
[1734338184604,0.8051,3959.2,3958.4,0.62477713]
[1734338184806,0.8051,3959.2,3958.5,0.36311352]
[1734338185046,2.52462,3961.0,3958.7,0.8035]
[1734338185047,0.7573,3960.9,3958.7,0.8035]
[1734338185337,2.52504,3960.4,3959.2,2.52576]
[1734338185552,2.52504,3960.4,3959.3,3.36311352]
[1734338186489,5.16864611,3960.6,3959.4,2.52563]
[1734338187851,2.52499,3960.4,3959.2,0.252576]
[1734338188159,0.7934,3960.5,3959.2,0.252576]
[1734338188160,1.31026461,3960.5,3959.2,2.52576]
[1734338188467,0.7934,3960.5,3959.7,2.52544]
[1734338188990,0.7934,3960.5,3959.6,0.7761]
[1734338189893,3.43713611,3960.5,3959.1,0.8047]
[1734338190402,5.96206611,3960.5,3959.1,1.16289778]
[1734338190746,3.43713611,3960.5,3959.2,0.66888478]
[1734338190952,2.52516,3960.2,3959.1,1.16289778]
[1734338191641,3.43713611,3960.5,3959.1,3.68870778]
[1734338191943,2.525,3960.4,3959.3,2.52569]
[1734338192153,3.43713611,3960.5,3959.1,1.5260113]
[1734338192706,2.52512,3960.3,3959.1,1.5260113]
[1734338193023,2.52512,3960.3,3959.2,0.41749873]
[1734338193224,2.52512,3960.3,3959.1,7.0518113]
[1734338193410,0.7868,3960.4,3958.7,3.7863]
[1734338193751,5.16903611,3960.0,3958.8,2.526]
[1734338193904,5.16903611,3960.0,3958.9,3.0]
[1734338194116,5.16903611,3960.0,3959.0,0.70336113]
[1734338194648,0.7554,3959.7,3958.8,0.35819778]
[1734338194846,2.64373611,3959.6,3958.4,0.35819778]
[1734338195043,5.16925611,3959.6,3958.5,2.88929352]
[1734338195252,5.16925611,3959.6,3958.5,3.2474913]
[1734338195453,2.52559,3959.5,3958.5,0.7213113]
[1734338195748,2.52559,3959.5,3958.5,1.12837443]
[1734338195906,2.52564,3959.4,3958.5,1.12837443]
[1734338196721,2.64373611,3959.6,3958.5,1.12837443]
[1734338196933,2.64373611,3959.6,3958.6,0.35819778]
[1734338197250,5.16925611,3959.6,3958.6,0.35819778]
[1734338197936,2.52557,3959.5,3958.6,0.35819778]
[1734338198100,2.5257,3959.3,3958.5,0.36311352]
[1734338199102,2.64373611,3959.6,3958.5,0.36311352]
[1734338199299,2.64373611,3959.6,3958.6,0.37123235]
[1734338199300,5.16923611,3959.6,3958.6,0.37123235]
[1734338199598,2.64373611,3959.6,3958.6,0.37123235]
[1734338200222,5.16925611,3959.6,3958.6,0.37123235]
[1734338200428,2.64373611,3959.6,3958.6,0.37123235]
[1734338200740,2.5257,3959.3,3958.5,0.36311352]
[1734338201602,5.50918972,3959.6,3958.5,0.36311352]
[1734338202038,2.52558,3959.5,3958.5,0.36311352]
[1734338202999,2.52558,3959.5,3958.3,6.3493]
[1734338203202,3.46763611,3960.0,3958.9,2.52595]
[1734338203500,3.46763611,3960.0,3959.1,0.8127]
[1734338204336,5.99288611,3960.0,3959.1,0.8127]
[1734338204541,2.52534,3959.9,3959.1,0.8127]
[1734338204935,3.46763611,3960.0,3958.6,0.7564]
[1734338205137,2.52553,3959.6,3958.6,0.7564]
[1734338205444,2.52553,3959.6,3958.6,1.42048378]
[1734338205944,2.52544,3959.8,3958.6,4.30482156]
[1734338206108,2.14885653,3959.6,3958.7,3.0]
[1734338206507,2.14885653,3959.6,3958.7,5.52606]
[1734338206738,2.14885653,3959.6,3958.8,2.52598]
[1734338206931,2.14885653,3959.6,3958.9,0.43046616]
[1734338207239,2.52505,3960.4,3959.4,2.52561]
[1734338207240,2.14885653,3960.4,3959.4,2.52561]
[1734338207416,0.8191,3960.5,3959.5,0.8118]
[1734338207745,4.67364653,3960.8,3959.7,2.52541]
[1734338207926,2.69813118,3960.8,3959.8,0.02525149]
[1734338208114,2.69813118,3960.8,3959.7,2.52541]
[1734338208615,2.69813118,3960.8,3959.5,1.16999778]
[1734338208811,2.14885653,3960.4,3959.5,4.16999778]
[1734338209006,2.14885653,3960.4,3959.5,4.83955656]
[1734338209211,2.14885653,3960.4,3959.6,2.52547]
[1734338209653,2.14885653,3960.4,3959.5,4.83955656]
[1734338209944,0.54927465,3960.8,3959.5,4.83955656]
[1734338209945,2.14885653,3960.8,3959.9,0.7961]
[1734338210129,2.14885653,3960.8,3960.1,3.0]
[1734338211011,2.14885653,3960.8,3959.9,0.7961]
[1734338211545,2.14885653,3960.8,3960.0,0.632148]
[1734338212519,2.14885653,3960.8,3960.0,3.0]
[1734338213441,2.14885653,3960.8,3959.9,3.32141]
[1734338213442,2.14885653,3960.8,3959.9,0.7961]
[1734338214023,2.14885653,3960.8,3959.9,3.7961]
[1734338214428,2.14885653,3960.8,3959.9,6.32139]
[1734338215115,2.14885653,3960.8,3959.9,3.7961]
[1734338215455,2.14885653,3960.8,3960.0,0.37961]
[1734338216938,2.14885653,3960.8,3960.1,3.0]
[1734338217722,3.35005,3961.1,3960.1,3.0]
[1734338217923,2.14885653,3961.0,3960.2,2.52512]
[1734338218654,2.14885653,3961.0,3960.1,0.36312617]
[1734338218823,2.14885653,3961.0,3960.2,0.40640762]
[1734338219714,2.14885653,3960.6,3960.0,0.37961]
[1734338219943,2.14885653,3960.2,3959.6,0.7749]
[1734338221143,2.14885653,3960.2,3959.6,3.7749]
[1734338221619,2.14885653,3960.2,3959.3,3.36312617]
[1734338222019,1.03714539,3961.2,3958.8,0.7749]
[1734338222020,2.14885653,3959.8,3958.8,0.7749]
[1734338222253,2.14885653,3959.4,3958.8,0.7749]
[1734338222454,2.95695653,3959.4,3958.8,0.7749]
[1734338222622,2.95695653,3959.4,3958.8,1.49622395]
[1734338222825,2.95695653,3959.4,3958.9,0.1496224]
[1734338223025,2.95695653,3959.4,3958.9,0.50782018]
[1734338223447,2.95695653,3959.4,3958.9,0.35819778]
[1734338223663,2.95695653,3959.4,3958.4,0.72132395]
[1734338223863,2.95695653,3959.4,3958.6,2.52613]
[1734338224061,2.95695653,3959.4,3958.2,0.8206]
[1734338224062,2.95695653,3959.4,3958.7,0.72132395]
[1734338224262,2.95695653,3959.4,3958.7,3.24739395]
[1734338224426,2.95695653,3959.4,3958.8,0.3247394]
[1734338224632,2.95695653,3959.4,3958.8,0.68293718]
[1734338225578,2.14885653,3959.0,3958.7,0.36312617]
[1734338226372,3.33374,3959.4,3958.7,0.36312617]
[1734338226609,2.14885653,3959.2,3958.7,0.36312617]
[1734338226738,2.14885653,3958.8,3958.3,0.35819778]
[1734338227037,2.14885653,3958.8,3957.9,0.26330294]
[1734338227038,2.14885653,3958.4,3958.1,0.36312617]
[1734338227809,2.14885653,3958.4,3958.0,0.26289877]
[1734338229076,0.7755,3958.7,3958.0,0.38346244]
[1734338229281,0.7755,3958.7,3958.1,0.72132395]
[1734338229599,0.817,3959.0,3958.3,2.52632]
[1734338229745,0.817,3959.0,3958.3,0.36312617]
[1734338230147,0.817,3959.0,3958.3,0.72132395]
[1734338230576,2.14885653,3958.8,3958.3,0.72132395]
[1734338231090,2.14885653,3958.8,3957.9,1.54332395]
[1734338231445,2.14885653,3958.8,3958.0,0.72132395]
[1734338232465,2.14885653,3958.4,3958.0,0.72132395]
[1734338232685,2.14885653,3958.4,3958.0,0.36312617]
[1734338232686,0.7884,3958.3,3958.0,0.36312617]
[1734338233065,0.7884,3958.3,3957.6,0.72132395]
[1734338233413,0.7884,3958.3,3957.7,0.35819778]
[1734338234658,0.7884,3958.3,3957.7,3.72132395]
[1734338234955,0.7884,3958.3,3957.7,4.44786174]
[1734338235783,2.52589,3959.0,3957.9,2.52659]
[1734338235987,0.7874,3958.9,3958.1,2.52645]
[1734338236190,0.7874,3959.2,3958.3,2.52632]
[1734338236349,0.7874,3959.2,3958.3,2.88944617]
[1734338236868,0.7874,3959.2,3958.3,3.24764395]
[1734338237057,0.7874,3959.2,3958.3,0.72132395]
[1734338237653,0.7874,3959.2,3958.4,0.36312617]
[1734338239289,0.7874,3959.2,3958.4,2.88938617]
[1734338239593,2.14885653,3958.9,3958.4,3.24758395]
[1734338239770,2.14885653,3958.9,3958.4,3.64832235]
[1734338239968,4.67414653,3960.0,3958.4,3.64832235]
[1734338239969,2.14885653,3959.3,3958.5,0.38345859]
[1734338240262,2.52511,3960.3,3958.5,0.38345859]
[1734338240263,2.14885653,3959.5,3958.7,2.52602]
[1734338240462,1.03758565,3959.4,3958.6,0.36312617]
[1734338240657,0.8227,3959.4,3958.6,0.36312617]
[1734338240853,2.97155653,3958.7,3957.9,0.7917]
[1734338241053,2.14885653,3958.1,3957.8,0.35819778]
[1734338241258,2.14885653,3958.1,3957.7,0.36312617]
[1734338241496,0.8068,3958.0,3957.4,0.26289395]
[1734338241666,0.8068,3958.0,3957.4,1.38025107]
[1734338241865,0.8068,3958.0,3957.5,0.72132395]
[1734338242269,2.14885653,3957.7,3957.5,0.36312617]
[1734338242621,2.14885653,3957.7,3957.4,0.26289395]
[1734338242622,2.5268,3957.6,3957.4,0.26289395]
[1734338242773,2.52684,3957.5,3957.4,0.26289395]
[1734338243536,3.35494,3957.5,3957.4,0.26289395]
[1734338244092,6.00300268,3957.5,3957.4,0.26289395]
[1734338244301,6.00300268,3957.5,3956.6,0.35819778]
[1734338244302,2.52693,3957.4,3956.6,0.35819778]
[1734338244481,2.64806268,3957.1,3956.6,0.35819778]
[1734338244676,2.64806268,3957.1,3956.7,0.26263731]
[1734338246696,3.47616268,3957.5,3956.7,0.62576348]
[1734338246879,3.47616268,3957.5,3956.8,0.72132395]
[1734338247387,3.47616268,3957.5,3956.8,1.07246008]
[1734338248310,3.47616268,3957.5,3956.8,0.72132395]
[1734338249065,0.8281,3957.5,3956.8,0.72132395]
[1734338249210,2.64806268,3957.9,3956.8,0.72132395]
[1734338249211,0.77,3957.8,3957.0,2.52716]
[1734338249413,0.77,3957.8,3957.1,0.72132395]